[Event "Titled Tuesday Blitz May 2 Early 2023"]
[White "Kubatko, Ivan"]
[Black "Goswami, Vedant"]
[WhiteFideId "24111473"]
[BlackFideId "5003725"]
[WhiteElo "2285"]
[BlackElo "2011"]
[Result "0-1"]
[Round "02"]
[TimeControl "180+2"]
[Date "2023.05.02"]
[WhiteClock "0:00:00"]
[BlackClock "0:00:00"]

1. e4 {[%clk 0:00:01]}  c6 {[%clk 0:00:01]} 2. d4 {[%clk 0:00:01]}  d5 {[%clk 0:00:01]} 3. exd5 {[%clk 0:00:01]}  cxd5 {[%clk 0:00:01]} 4. c4 {[%clk 0:00:01]}  e6 {[%clk 0:00:01]} 5. Nc3 {[%clk 0:00:01]}  Nf6 {[%clk 0:00:01]} 6. Nf3 {[%clk 0:00:01]}  Be7 {[%clk 0:00:01]} 7. cxd5 {[%clk 0:00:01]}  Nxd5 {[%clk 0:00:01]} 8. Bd3 {[%clk 0:00:01]}  Nc6 {[%clk 0:00:01]} 9. O-O {[%clk 0:00:01]}  O-O {[%clk 0:00:01]} 10. Re1 {[%clk 0:00:01]}  Bf6 {[%clk 0:00:01]} 11. Be4 {[%clk 0:00:01]}  Nce7 {[%clk 0:00:01]} 12. Qd3 {[%clk 0:00:01]}  h6 {[%clk 0:00:01]} 13. Ne5 {[%clk 0:00:01]}  Bd7 {[%clk 0:00:01]} 14. Qg3 {[%clk 0:00:01]}  Kh8 {[%clk 0:00:01]} 15. Qh3 {[%clk 0:00:01]}  Nxc3 {[%clk 0:00:01]} 16. bxc3 {[%clk 0:00:00]}  Nf5 {[%clk 0:00:00]} 17. g4 {[%clk 0:00:00]}  Nd6 {[%clk 0:00:00]} 18. Bd3 {[%clk 0:00:00]}  Bg5 {[%clk 0:00:00]} 19. f4 {[%clk 0:00:00]}  Bh4 {[%clk 0:00:00]} 20. Rf1 {[%clk 0:00:00]}  Bf6 {[%clk 0:00:00]} 21. g5 {[%clk 0:00:00]}  Bxe5 {[%clk 0:00:00]} 22. gxh6 {[%clk 0:00:00]}  g6 {[%clk 0:00:00]} 23. fxe5 {[%clk 0:00:00]}  Nf5 {[%clk 0:00:00]} 24. Qg4 {[%clk 0:00:00]}  Bc6 {[%clk 0:00:00]} 25. Be4 {[%clk 0:00:00]}  Rc8 {[%clk 0:00:00]} 26. Bg5 {[%clk 0:00:00]}  Qd7 {[%clk 0:00:00]} 27. Bf6+ {[%clk 0:00:00]}  Kh7 {[%clk 0:00:00]} 28. Rf3 {[%clk 0:00:00]}  Bxe4 {[%clk 0:00:00]} 29. Qxe4 {[%clk 0:00:00]}  Qd5 {[%clk 0:00:00]} 30. Qg4 {[%clk 0:00:00]}  Rc4 {[%clk 0:00:00]} 31. Raf1 {[%clk 0:00:00]}  Rfc8 {[%clk 0:00:00]} 32. Rxf5 {[%clk 0:00:00]}  exf5 {[%clk 0:00:00]} 33. Rxf5 {[%clk 0:00:00]}  Rxc3 {[%clk 0:00:00]} 34. Rf1 {[%clk 0:00:00]}  Rc1 {[%clk 0:00:00]} 35. Qg5 {[%clk 0:00:00]}  Rxf1+ {[%clk 0:00:00]} 36. Kxf1 {[%clk 0:00:00]}  Qe4 {[%clk 0:00:00]} 37. Qd2 {[%clk 0:00:00]}  Rc2 {[%clk 0:00:00]} 38. Qe1 {[%clk 0:00:00]}  Qd3+ {[%clk 0:00:00]} 39. Kg1 {[%clk 0:00:00]}  Qxd4+ {[%clk 0:00:00]} 40. Kf1 {[%clk 0:00:00]}  Qd3+ {[%clk 0:00:00]} 41. Kg1 {[%clk 0:00:00]}  Qd4+ {[%clk 0:00:00]} 42. Kf1 {[%clk 0:00:00]}  Qc4+ {[%clk 0:00:00]} 43. Kg1 {[%clk 0:00:00]}  Rc1 {[%clk 0:00:00]} 44. Bh4 {[%clk 0:00:00]}  Rxe1+ {[%clk 0:00:00]} 45. Bxe1 {[%clk 0:00:00]}  Qe4 {[%clk 0:00:00]} 46. Bg3 {[%clk 0:00:00]}  Qe3+ {[%clk 0:00:00]} 47. Kg2 {[%clk 0:00:00]}  Kxh6 {[%clk 0:00:00]} 48. h4 {[%clk 0:00:00]}  Qe2+ {[%clk 0:00:00]} 49. Bf2 {[%clk 0:00:00]}  Kh5 {[%clk 0:00:00]} 50. Kg3 {[%clk 0:00:00]}  Qe4 {[%clk 0:00:00]} 51. Kh2 {[%clk 0:00:00]}  a5 {[%clk 0:00:00]} 52. Bg3 {[%clk 0:00:00]}  Kg4 {[%clk 0:00:00]} 53. e6 {[%clk 0:00:00]}  Qxe6 {[%clk 0:00:00]} 54. h5 {[%clk 0:00:00]}  Qe2+ {[%clk 0:00:00]} 55. Kg1 {[%clk 0:00:00]}  Kxg3 {[%clk 0:00:00]} 0-1


[Site "https://www.chess.com"]

[Event "Titled Tuesday Blitz May 2 Early 2023"]
[White "Marchesich, Giovanni"]
[Black "Drori, Saar"]
[WhiteFideId "2824790"]
[BlackFideId "2812444"]
[WhiteElo "2209"]
[BlackElo "2322"]
[Result "0-1"]
[Round "02"]
[TimeControl "180+2"]
[Date "2023.05.02"]
[WhiteClock "0:01:38"]
[BlackClock "0:00:55"]

1. d4 {[%clk 0:03:00]}  Nf6 {[%clk 0:02:59]} 2. Nf3 {[%clk 0:03:01]}  g6 {[%clk 0:02:59]} 3. Nc3 {[%clk 0:03:00]}  d5 {[%clk 0:02:57]} 4. Bf4 {[%clk 0:03:00]}  Bg7 {[%clk 0:02:57]} 5. Qd2 {[%clk 0:03:01]}  O-O {[%clk 0:02:58]} 6. Bh6 {[%clk 0:03:01]}  c5 {[%clk 0:02:48]} 7. Bxg7 {[%clk 0:02:59]}  Kxg7 {[%clk 0:02:48]} 8. dxc5 {[%clk 0:03:00]}  Na6 {[%clk 0:02:48]} 9. O-O-O {[%clk 0:02:59]}  Nxc5 {[%clk 0:02:36]} 10. Nxd5 {[%clk 0:02:38]}  Qxd5 {[%clk 0:01:57]} 11. Qxd5 {[%clk 0:02:35]}  Nxd5 {[%clk 0:01:58]} 12. Rxd5 {[%clk 0:02:36]}  Ne4 {[%clk 0:01:58]} 13. e3 {[%clk 0:02:12]}  Nxf2 {[%clk 0:01:33]} 14. Rg1 {[%clk 0:02:11]}  Ng4 {[%clk 0:01:19]} 15. Kd2 {[%clk 0:02:02]}  Be6 {[%clk 0:01:17]} 16. Rd3 {[%clk 0:02:00]}  Rfd8 {[%clk 0:01:15]} 17. Nd4 {[%clk 0:01:52]}  Bc4 {[%clk 0:01:06]} 18. Rc3 {[%clk 0:01:40]}  Bxf1 {[%clk 0:01:03]} 19. Rxf1 {[%clk 0:01:41]}  e5 {[%clk 0:01:03]} 20. Rc7 {[%clk 0:01:41]}  Nf6 {[%clk 0:01:02]} 21. g4 {[%clk 0:01:38]}  exd4 {[%clk 0:01:01]} 22. g5 {[%clk 0:01:38]}  dxe3+ {[%clk 0:00:57]} 23. Ke1 {[%clk 0:01:38]}  Nd7 {[%clk 0:00:55]} 0-1


[Site "https://www.chess.com"]

[Event "Titled Tuesday Blitz May 2 Early 2023"]
[White "Bashirli, Saadat"]
[Black "Reefat, Bin-Sattar"]
[WhiteFideId "13429990"]
[BlackFideId "10200207"]
[WhiteElo "1408"]
[BlackElo "2462"]
[Result "0-1"]
[Round "02"]
[TimeControl "180+2"]
[Date "2023.05.02"]
[WhiteClock "0:00:52"]
[BlackClock "0:02:07"]

1. e4 {[%clk 0:02:59]}  e6 {[%clk 0:02:59]} 2. d4 {[%clk 0:02:59]}  d5 {[%clk 0:02:58]} 3. Nc3 {[%clk 0:02:58]}  Nf6 {[%clk 0:02:58]} 4. Bg5 {[%clk 0:02:56]}  dxe4 {[%clk 0:02:58]} 5. Nxe4 {[%clk 0:02:57]}  Be7 {[%clk 0:02:58]} 6. Bxf6 {[%clk 0:02:56]}  gxf6 {[%clk 0:02:59]} 7. c3 {[%clk 0:02:56]}  f5 {[%clk 0:02:57]} 8. Nd2 {[%clk 0:02:55]}  Nd7 {[%clk 0:02:49]} 9. Ngf3 {[%clk 0:02:54]}  c5 {[%clk 0:02:49]} 10. Bb5 {[%clk 0:02:51]}  Qb6 {[%clk 0:02:42]} 11. Bxd7+ {[%clk 0:02:32]}  Bxd7 {[%clk 0:02:42]} 12. Qc2 {[%clk 0:02:28]}  cxd4 {[%clk 0:02:39]} 13. Nxd4 {[%clk 0:02:29]}  Rg8 {[%clk 0:02:36]} 14. O-O {[%clk 0:02:21]}  O-O-O {[%clk 0:02:34]} 15. Nc4 {[%clk 0:02:19]}  Qc7 {[%clk 0:02:33]} 16. Ne3 {[%clk 0:02:15]}  f4 {[%clk 0:02:32]} 17. Nd1 {[%clk 0:02:08]}  Bc5 {[%clk 0:02:23]} 18. Nb3 {[%clk 0:02:01]}  Bc6 {[%clk 0:02:20]} 19. Re1 {[%clk 0:01:15]}  Rxg2+ {[%clk 0:02:14]} 20. Kf1 {[%clk 0:01:14]}  f3 {[%clk 0:02:13]} 21. Ne3 {[%clk 0:00:52]}  Qxh2 {[%clk 0:02:07]} 0-1


[Site "https://www.chess.com"]

[Event "Titled Tuesday Blitz May 2 Early 2023"]
[White "Adithya A Chullikkad"]
[Black "Bethke, Richard"]
[WhiteFideId "45078734"]
[BlackFideId "12959243"]
[WhiteElo "1984"]
[BlackElo "2369"]
[Result "1-0"]
[Round "02"]
[TimeControl "180+2"]
[Date "2023.05.02"]
[WhiteClock "0:00:18"]
[BlackClock "0:01:17"]

1. d4 {[%clk 0:03:00]}  Nf6 {[%clk 0:02:57]} 2. c4 {[%clk 0:03:01]}  e6 {[%clk 0:02:57]} 3. Nc3 {[%clk 0:03:01]}  Bb4 {[%clk 0:02:57]} 4. Qc2 {[%clk 0:03:02]}  O-O {[%clk 0:02:56]} 5. Nf3 {[%clk 0:02:58]}  c5 {[%clk 0:02:54]} 6. dxc5 {[%clk 0:02:58]}  Qa5 {[%clk 0:02:51]} 7. Bd2 {[%clk 0:02:50]}  Qxc5 {[%clk 0:02:50]} 8. a3 {[%clk 0:02:50]}  Bxc3 {[%clk 0:02:50]} 9. Bxc3 {[%clk 0:02:48]}  Qxc4 {[%clk 0:02:50]} 10. e3 {[%clk 0:02:48]}  Qc7 {[%clk 0:02:44]} 11. Bd3 {[%clk 0:02:47]}  d5 {[%clk 0:02:39]} 12. O-O {[%clk 0:02:34]}  Nbd7 {[%clk 0:02:39]} 13. Rac1 {[%clk 0:02:34]}  b6 {[%clk 0:02:38]} 14. Qa4 {[%clk 0:02:30]}  Nc5 {[%clk 0:02:34]} 15. Qh4 {[%clk 0:02:21]}  Nfe4 {[%clk 0:02:05]} 16. Bb1 {[%clk 0:00:57]}  f5 {[%clk 0:01:55]} 17. b4 {[%clk 0:00:49]}  Nb3 {[%clk 0:01:54]} 18. Be5 {[%clk 0:00:39]}  Qd8 {[%clk 0:01:43]} 19. Qxd8 {[%clk 0:00:34]}  Rxd8 {[%clk 0:01:44]} 20. Rc7 {[%clk 0:00:25]}  Ba6 {[%clk 0:01:40]} 21. Rxg7+ {[%clk 0:00:24]}  Kf8 {[%clk 0:01:39]} 22. Bxe4 {[%clk 0:00:19]}  dxe4 {[%clk 0:01:35]} 23. Ng5 {[%clk 0:00:19]}  Rd5 {[%clk 0:01:28]} 24. Nxh7+ {[%clk 0:00:19]}  Ke8 {[%clk 0:01:28]} 25. Nf6+ {[%clk 0:00:18]}  Kf8 {[%clk 0:01:23]} 26. Nh7+ {[%clk 0:00:18]}  Ke8 {[%clk 0:01:23]} 27. Nf6+ {[%clk 0:00:19]}  Kd8 {[%clk 0:01:24]} 28. Nxd5 {[%clk 0:00:19]}  Bxf1 {[%clk 0:01:24]} 29. Nf6 {[%clk 0:00:17]}  Bb5 {[%clk 0:01:18]} 30. Rg8+ {[%clk 0:00:17]}  Ke7 {[%clk 0:01:18]} 31. Rxa8 {[%clk 0:00:17]}  a5 {[%clk 0:01:18]} 32. bxa5 {[%clk 0:00:17]}  Nxa5 {[%clk 0:01:18]} 33. Ra7+ {[%clk 0:00:17]}  Kf8 {[%clk 0:01:17]} 34. Bd6# {[%clk 0:00:18]} 1-0


[Site "https://www.chess.com"]

[Event "Titled Tuesday Blitz May 2 Early 2023"]
[White "Barria Santos, Jose Guilherme"]
[Black "Salman, Pavel"]
[WhiteFideId "1939300"]
[BlackFideId "24153753"]
[WhiteElo "2266"]
[BlackElo "2187"]
[Result "0-1"]
[Round "02"]
[TimeControl "180+2"]
[Date "2023.05.02"]
[WhiteClock "0:00:00"]
[BlackClock "0:00:00"]

1. d4 {[%clk 0:00:01]}  Nf6 {[%clk 0:00:01]} 2. c4 {[%clk 0:00:01]}  c5 {[%clk 0:00:01]} 3. d5 {[%clk 0:00:01]}  b5 {[%clk 0:00:01]} 4. cxb5 {[%clk 0:00:01]}  a6 {[%clk 0:00:01]} 5. bxa6 {[%clk 0:00:01]}  g6 {[%clk 0:00:01]} 6. Nc3 {[%clk 0:00:01]}  Bg7 {[%clk 0:00:01]} 7. Nf3 {[%clk 0:00:01]}  O-O {[%clk 0:00:01]} 8. Bf4 {[%clk 0:00:01]}  Qa5 {[%clk 0:00:01]} 9. e3 {[%clk 0:00:01]}  Nxd5 {[%clk 0:00:01]} 10. Be5 {[%clk 0:00:01]}  Bxe5 {[%clk 0:00:01]} 11. Nxe5 {[%clk 0:00:01]}  Nxc3 {[%clk 0:00:01]} 12. Qd2 {[%clk 0:00:01]}  Bxa6 {[%clk 0:00:01]} 13. Qxc3 {[%clk 0:00:01]}  Bxf1 {[%clk 0:00:01]} 14. Qxa5 {[%clk 0:00:01]}  Rxa5 {[%clk 0:00:01]} 15. Kxf1 {[%clk 0:00:01]}  d6 {[%clk 0:00:01]} 16. Nc4 {[%clk 0:00:01]}  Ra7 {[%clk 0:00:01]} 17. Ke2 {[%clk 0:00:01]}  Nc6 {[%clk 0:00:01]} 18. a3 {[%clk 0:00:01]}  Rb8 {[%clk 0:00:01]} 19. Rab1 {[%clk 0:00:00]}  d5 {[%clk 0:00:01]} 20. Nd2 {[%clk 0:00:00]}  e5 {[%clk 0:00:01]} 21. Rhc1 {[%clk 0:00:00]}  c4 {[%clk 0:00:01]} 22. f4 {[%clk 0:00:00]}  exf4 {[%clk 0:00:01]} 23. exf4 {[%clk 0:00:00]}  Nd4+ {[%clk 0:00:01]} 24. Kf2 {[%clk 0:00:00]}  Re7 {[%clk 0:00:01]} 25. Re1 {[%clk 0:00:00]}  Reb7 {[%clk 0:00:01]} 26. Re5 {[%clk 0:00:00]}  Rxb2 {[%clk 0:00:01]} 27. Rxb2 {[%clk 0:00:00]}  Rxb2 {[%clk 0:00:01]} 28. Ke3 {[%clk 0:00:00]}  Nf5+ {[%clk 0:00:00]} 29. Kf3 {[%clk 0:00:00]}  Rxd2 {[%clk 0:00:00]} 30. Re8+ {[%clk 0:00:00]}  Kg7 {[%clk 0:00:00]} 31. Rc8 {[%clk 0:00:00]}  d4 {[%clk 0:00:00]} 32. g4 {[%clk 0:00:00]}  Nd6 {[%clk 0:00:00]} 33. Rc6 {[%clk 0:00:00]}  Rd3+ {[%clk 0:00:00]} 34. Ke2 {[%clk 0:00:00]}  Re3+ {[%clk 0:00:00]} 35. Kf2 {[%clk 0:00:00]}  Ne4+ {[%clk 0:00:00]} 36. Kf1 {[%clk 0:00:00]}  d3 {[%clk 0:00:00]} 37. h4 {[%clk 0:00:00]}  d2 {[%clk 0:00:00]} 38. Rxc4 {[%clk 0:00:00]}  d1=Q+ {[%clk 0:00:00]} 39. Kg2 {[%clk 0:00:00]}  Qd2+ {[%clk 0:00:00]} 0-1


[Site "https://www.chess.com"]

[Event "Titled Tuesday Blitz May 2 Early 2023"]
[White "Kuchava, Ana"]
[Black "Yeritsyan, Hayk"]
[WhiteFideId "13605348"]
[BlackFideId "13307320"]
[WhiteElo "2001"]
[BlackElo "2241"]
[Result "0-1"]
[Round "02"]
[TimeControl "180+2"]
[Date "2023.05.02"]
[WhiteClock "0:00:00"]
[BlackClock "0:00:00"]

1. d4 {[%clk 0:00:01]}  Nf6 {[%clk 0:00:01]} 2. Nf3 {[%clk 0:00:01]}  d5 {[%clk 0:00:01]} 3. c4 {[%clk 0:00:01]}  e6 {[%clk 0:00:01]} 4. Nc3 {[%clk 0:00:01]}  Bb4 {[%clk 0:00:01]} 5. Qa4+ {[%clk 0:00:01]}  Nc6 {[%clk 0:00:01]} 6. e3 {[%clk 0:00:01]}  O-O {[%clk 0:00:01]} 7. Bd3 {[%clk 0:00:01]}  dxc4 {[%clk 0:00:01]} 8. Bxc4 {[%clk 0:00:01]}  Bd7 {[%clk 0:00:01]} 9. Qc2 {[%clk 0:00:01]}  a6 {[%clk 0:00:01]} 10. a4 {[%clk 0:00:01]}  Bd6 {[%clk 0:00:01]} 11. O-O {[%clk 0:00:01]}  e5 {[%clk 0:00:01]} 12. d5 {[%clk 0:00:01]}  Ne7 {[%clk 0:00:01]} 13. e4 {[%clk 0:00:01]}  Ng6 {[%clk 0:00:01]} 14. Bg5 {[%clk 0:00:01]}  h6 {[%clk 0:00:01]} 15. Be3 {[%clk 0:00:01]}  Nh5 {[%clk 0:00:01]} 16. Rab1 {[%clk 0:00:01]}  Nhf4 {[%clk 0:00:01]} 17. b4 {[%clk 0:00:00]}  Bg4 {[%clk 0:00:01]} 18. Nd2 {[%clk 0:00:00]}  Qg5 {[%clk 0:00:01]} 19. g3 {[%clk 0:00:00]}  Qh5 {[%clk 0:00:01]} 20. f3 {[%clk 0:00:00]}  Bh3 {[%clk 0:00:01]} 21. Rf2 {[%clk 0:00:00]}  f5 {[%clk 0:00:01]} 22. exf5 {[%clk 0:00:00]}  Bxf5 {[%clk 0:00:01]} 23. Nce4 {[%clk 0:00:00]}  Nh3+ {[%clk 0:00:01]} 24. Kg2 {[%clk 0:00:00]}  Nxf2 {[%clk 0:00:01]} 25. Bxf2 {[%clk 0:00:00]}  Bh3+ {[%clk 0:00:01]} 26. Kg1 {[%clk 0:00:00]}  Rae8 {[%clk 0:00:01]} 27. Be2 {[%clk 0:00:00]}  Qf5 {[%clk 0:00:00]} 28. Rc1 {[%clk 0:00:00]}  h5 {[%clk 0:00:00]} 29. Nxd6 {[%clk 0:00:00]}  cxd6 {[%clk 0:00:00]} 30. Qxf5 {[%clk 0:00:00]}  Bxf5 {[%clk 0:00:00]} 31. Rc7 {[%clk 0:00:00]}  Rf7 {[%clk 0:00:00]} 0-1


[Site "https://www.chess.com"]

[Event "Titled Tuesday Blitz May 2 Early 2023"]
[White "Thiel, Thomas"]
[Black "Eggink, Ryszard"]
[WhiteFideId "4615964"]
[BlackFideId "1125869"]
[WhiteElo "2234"]
[BlackElo "2283"]
[Result "0-1"]
[Round "02"]
[TimeControl "180+2"]
[Date "2023.05.02"]
[WhiteClock "0:01:34"]
[BlackClock "0:00:29"]

1. e4 {[%clk 0:03:00]}  c5 {[%clk 0:02:59]} 2. Nc3 {[%clk 0:02:58]}  g6 {[%clk 0:02:57]} 3. d4 {[%clk 0:02:54]}  cxd4 {[%clk 0:02:57]} 4. Qxd4 {[%clk 0:02:54]}  Nf6 {[%clk 0:02:56]} 5. Be3 {[%clk 0:02:54]}  Nc6 {[%clk 0:02:55]} 6. Qd2 {[%clk 0:02:53]}  Bg7 {[%clk 0:02:53]} 7. f3 {[%clk 0:02:53]}  O-O {[%clk 0:02:51]} 8. Bc4 {[%clk 0:02:52]}  d6 {[%clk 0:02:44]} 9. Nge2 {[%clk 0:02:50]}  Bd7 {[%clk 0:02:41]} 10. O-O-O {[%clk 0:02:47]}  Rc8 {[%clk 0:02:41]} 11. Bb3 {[%clk 0:02:44]}  Na5 {[%clk 0:02:34]} 12. h4 {[%clk 0:02:42]}  Nc4 {[%clk 0:02:28]} 13. Bxc4 {[%clk 0:02:42]}  Rxc4 {[%clk 0:02:29]} 14. g4 {[%clk 0:02:32]}  b5 {[%clk 0:02:16]} 15. Kb1 {[%clk 0:02:18]}  b4 {[%clk 0:02:10]} 16. Nd5 {[%clk 0:02:17]}  Nxd5 {[%clk 0:02:10]} 17. Qxd5 {[%clk 0:02:11]}  Be6 {[%clk 0:02:02]} 18. Qb7 {[%clk 0:02:08]}  Qa5 {[%clk 0:01:45]} 19. b3 {[%clk 0:01:54]}  Rxc2 {[%clk 0:00:49]} 20. Kxc2 {[%clk 0:01:55]}  Qxa2+ {[%clk 0:00:49]} 21. Kd3 {[%clk 0:01:54]}  Bxb3 {[%clk 0:00:39]} 22. Rc1 {[%clk 0:01:47]}  d5 {[%clk 0:00:34]} 23. e5 {[%clk 0:01:43]}  Bxe5 {[%clk 0:00:32]} 24. Bd4 {[%clk 0:01:43]}  Bc4+ {[%clk 0:00:31]} 25. Rxc4 {[%clk 0:01:35]}  Qxc4+ {[%clk 0:00:29]} 26. Ke3 {[%clk 0:01:34]}  Bxd4+ {[%clk 0:00:29]} 0-1


[Site "https://www.chess.com"]

[Event "Titled Tuesday Blitz May 2 Early 2023"]
[White "Lucas, Arthur"]
[Black "Clawitter, Craig"]
[WhiteFideId "26093073"]
[BlackFideId "2023105"]
[WhiteElo "2251"]
[BlackElo "2050"]
[Result "1-0"]
[Round "02"]
[TimeControl "180+2"]
[Date "2023.05.02"]
[WhiteClock "0:00:02"]
[BlackClock "0:00:01"]

1. e4 {[%clk 0:02:59]}  e6 {[%clk 0:02:59]} 2. d4 {[%clk 0:02:59]}  d5 {[%clk 0:02:59]} 3. Nc3 {[%clk 0:02:53]}  Bb4 {[%clk 0:02:58]} 4. e5 {[%clk 0:02:52]}  c5 {[%clk 0:02:58]} 5. Bd2 {[%clk 0:02:53]}  Nh6 {[%clk 0:02:57]} 6. Nb5 {[%clk 0:02:52]}  Bxd2+ {[%clk 0:02:57]} 7. Qxd2 {[%clk 0:02:53]}  O-O {[%clk 0:02:57]} 8. f4 {[%clk 0:02:50]}  cxd4 {[%clk 0:02:56]} 9. Nf3 {[%clk 0:02:50]}  Nc6 {[%clk 0:02:55]} 10. Bd3 {[%clk 0:02:49]}  a6 {[%clk 0:02:55]} 11. Nd6 {[%clk 0:02:47]}  f6 {[%clk 0:02:53]} 12. O-O {[%clk 0:02:44]}  Ng4 {[%clk 0:02:40]} 13. Rae1 {[%clk 0:02:29]}  g6 {[%clk 0:02:28]} 14. Nxc8 {[%clk 0:02:22]}  Rxc8 {[%clk 0:02:27]} 15. exf6 {[%clk 0:02:21]}  Qxf6 {[%clk 0:02:26]} 16. Ng5 {[%clk 0:02:18]}  Ne3 {[%clk 0:02:15]} 17. Rf3 {[%clk 0:02:18]}  e5 {[%clk 0:02:07]} 18. Rh3 {[%clk 0:01:44]}  Qxf4 {[%clk 0:01:43]} 19. Ne6 {[%clk 0:01:34]}  Qf7 {[%clk 0:01:38]} 20. Nxf8 {[%clk 0:01:33]}  Rxf8 {[%clk 0:01:39]} 21. Rf3 {[%clk 0:01:30]}  Qe7 {[%clk 0:01:30]} 22. Rxf8+ {[%clk 0:01:25]}  Qxf8 {[%clk 0:01:31]} 23. Be2 {[%clk 0:01:14]}  Qb4 {[%clk 0:01:12]} 24. c3 {[%clk 0:01:10]}  Qa5 {[%clk 0:00:58]} 25. b4 {[%clk 0:01:11]}  Qb6 {[%clk 0:00:52]} 26. cxd4 {[%clk 0:00:58]}  exd4 {[%clk 0:00:32]} 27. Bf3 {[%clk 0:00:36]}  Qxb4 {[%clk 0:00:26]} 28. Qxb4 {[%clk 0:00:23]}  Nxb4 {[%clk 0:00:27]} 29. Rb1 {[%clk 0:00:23]}  Nxa2 {[%clk 0:00:20]} 30. Rxb7 {[%clk 0:00:23]}  Nc3 {[%clk 0:00:14]} 31. Kf2 {[%clk 0:00:19]}  Nf5 {[%clk 0:00:08]} 32. Ra7 {[%clk 0:00:16]}  d3 {[%clk 0:00:08]} 33. Rxa6 {[%clk 0:00:13]}  d2 {[%clk 0:00:08]} 34. Ra1 {[%clk 0:00:05]}  Nd4 {[%clk 0:00:08]} 35. Bd1 {[%clk 0:00:04]}  Nxd1+ {[%clk 0:00:05]} 36. Rxd1 {[%clk 0:00:04]}  Nb3 {[%clk 0:00:05]} 37. Ke2 {[%clk 0:00:02]}  d4 {[%clk 0:00:05]} 38. Rb1 {[%clk 0:00:02]}  d3+ {[%clk 0:00:05]} 39. Kxd3 {[%clk 0:00:01]}  Nc1+ {[%clk 0:00:03]} 40. Kxd2 {[%clk 0:00:02]}  Na2 {[%clk 0:00:02]} 41. Kd3 {[%clk 0:00:01]}  Kf7 {[%clk 0:00:02]} 42. Rb2 {[%clk 0:00:01]}  Nc1+ {[%clk 0:00:01]} 43. Kd2 {[%clk 0:00:02]} 1-0


[Site "https://www.chess.com"]

[Event "Titled Tuesday Blitz May 2 Early 2023"]
[White "Ciuffoletti, Paolo"]
[Black "Stanojevic, Ilija"]
[WhiteFideId "807630"]
[BlackFideId "959995"]
[WhiteElo "2143"]
[BlackElo "2138"]
[Result "0-1"]
[Round "02"]
[TimeControl "180+2"]
[Date "2023.05.02"]
[WhiteClock "0:00:05"]
[BlackClock "0:01:35"]

1. e4 {[%clk 0:03:00]}  d6 {[%clk 0:02:58]} 2. d4 {[%clk 0:02:59]}  Nf6 {[%clk 0:02:58]} 3. Nc3 {[%clk 0:02:58]}  Nbd7 {[%clk 0:02:58]} 4. f4 {[%clk 0:02:57]}  e5 {[%clk 0:02:58]} 5. Nf3 {[%clk 0:02:55]}  exd4 {[%clk 0:02:58]} 6. Nxd4 {[%clk 0:02:55]}  g6 {[%clk 0:02:58]} 7. Bc4 {[%clk 0:02:55]}  Bg7 {[%clk 0:02:58]} 8. O-O {[%clk 0:02:55]}  O-O {[%clk 0:02:58]} 9. h3 {[%clk 0:02:45]}  Re8 {[%clk 0:02:55]} 10. Qf3 {[%clk 0:02:30]}  Nc5 {[%clk 0:02:44]} 11. Nb3 {[%clk 0:01:49]}  Ncxe4 {[%clk 0:02:24]} 12. Nxe4 {[%clk 0:01:31]}  Nxe4 {[%clk 0:02:25]} 13. c3 {[%clk 0:01:18]}  d5 {[%clk 0:02:23]} 14. Bd3 {[%clk 0:01:15]}  f5 {[%clk 0:02:14]} 15. Be3 {[%clk 0:01:14]}  b6 {[%clk 0:02:12]} 16. Bd4 {[%clk 0:01:13]}  Bb7 {[%clk 0:02:12]} 17. Bxg7 {[%clk 0:01:12]}  Kxg7 {[%clk 0:02:13]} 18. Rae1 {[%clk 0:00:59]}  c5 {[%clk 0:02:12]} 19. Bb5 {[%clk 0:00:50]}  Re7 {[%clk 0:02:08]} 20. Nc1 {[%clk 0:00:49]}  a6 {[%clk 0:02:07]} 21. Ba4 {[%clk 0:00:45]}  b5 {[%clk 0:02:03]} 22. Bc2 {[%clk 0:00:34]}  d4 {[%clk 0:02:03]} 23. Qd1 {[%clk 0:00:18]}  dxc3 {[%clk 0:01:59]} 24. bxc3 {[%clk 0:00:16]}  Qxd1 {[%clk 0:01:58]} 25. Rxd1 {[%clk 0:00:15]}  Nxc3 {[%clk 0:01:57]} 26. Rd6 {[%clk 0:00:14]}  Rae8 {[%clk 0:01:53]} 27. Nd3 {[%clk 0:00:11]}  Re2 {[%clk 0:01:50]} 28. Rf2 {[%clk 0:00:10]}  Rxf2 {[%clk 0:01:50]} 29. Nxf2 {[%clk 0:00:08]}  Re1+ {[%clk 0:01:50]} 30. Kh2 {[%clk 0:00:07]}  Re2 {[%clk 0:01:37]} 31. Rd7+ {[%clk 0:00:07]}  Kf6 {[%clk 0:01:37]} 32. Rxb7 {[%clk 0:00:05]}  Rxf2 {[%clk 0:01:35]} 0-1


[Site "https://www.chess.com"]